fUST/lending_fUST_20250926
["ID","MTS","AMOUNT","RATE_DAILY","PERIOD"]
[387800262,1758881458197,-480.0,0.00040821,30]
[387800263,1758881458207,-804.45,0.00040821,30]
[387800264,1758881458216,-480.0,0.00040821,30]
[387800265,1758881458225,-1474.37119793,0.00040821,30]
[387800266,1758881527030,-235.46105485,0.00027403,7]
[387800267,1758881527056,-154.07,0.0002764,15]
[387800268,1758881527081,-154.07,0.0002774,15]
[387800269,1758881527107,-154.07,0.0002784,15]
[387800270,1758881527134,-154.09,0.0002794,15]
[387800271,1758881527159,-235.46105485,0.00028475,9]
[387800272,1758881527272,-235.46105485,0.00029547,12]
[387800273,1758881527317,-235.46105485,0.00030619,14]
[387800274,1758881527342,-235.46105485,0.0003169,16]
[387800275,1758881527367,-235.46105485,0.00032762,19]
[387800276,1758881527392,-235.46105485,0.00033834,21]
[387800277,1758881527418,-235.46105485,0.00034906,23]
[387800278,1758881527442,-235.46105485,0.00035978,26]
[387800279,1758881527466,-216.70576714,0.00037,120]
[387800280,1758881527493,-235.46105485,0.0003705,28]
[387800281,1758881527519,-235.46105485,0.00038122,30]
[387800282,1758881527543,-480.0,0.00038356,30]
[387800283,1758881527572,-313.80316451,0.00038356,30]
[387800284,1758881527599,-622.08,0.00038356,30]
[387800285,1758881527625,-480.0,0.00038356,30]
[387800286,1758881527652,-480.0,0.00038356,30]
[387800287,1758881527677,-480.0,0.00038356,30]
[387800288,1758881527704,-820.08,0.00038356,30]
[387800289,1758881527732,-2176.53,0.00038356,30]
[387800290,1758881527758,-695.64,0.00038356,30]
[387800291,1758881527782,-480.0,0.00038356,30]
[387800292,1758881527807,-480.0,0.00038356,30]
[387800293,1758881527832,-480.0,0.00038356,30]
[387800294,1758881527856,-637.11,0.00038356,30]
[387800295,1758881527882,-1382.9,0.00038356,30]
[387800296,1758881527906,-480.0,0.00038356,30]
[387800297,1758881527929,-279.9984505,0.00038356,30]
[387800298,1758881527955,-480.0,0.00038356,30]
[387800299,1758881527980,-480.0,0.00038356,30]
[387800300,1758881528004,-480.0,0.00038356,30]
[387800301,1758881528029,-2932.64,0.00038356,30]
[387800302,1758881528054,-480.0,0.00038356,30]
[387800303,1758881528079,-480.0,0.00038356,30]
[387800304,1758881528104,-480.0,0.00038356,30]
[387800305,1758881528126,-480.0,0.00038356,30]
[387800306,1758881528151,-480.0,0.0003863,30]
[387800307,1758881528178,-622.08,0.0003863,30]
[387800308,1758881528204,-480.0,0.0003863,30]
[387800309,1758881528229,-480.0,0.0003863,30]
[387800310,1758881528265,-372.04027623,0.0003863,30]
[387800311,1758881528299,-820.08,0.0003863,30]
[387800312,1758881528333,-2176.53,0.0003863,30]
[387800313,1758881528369,-695.64,0.0003863,30]
[387800314,1758881528403,-480.0,0.0003863,30]
[387800315,1758881528435,-487.51624194,0.0003863,30]
[387800316,1758881528467,-480.0,0.0003863,30]
[387800317,1758881528499,-637.11,0.0003863,30]
[387800318,1758881528543,-1382.9,0.0003863,30]
[387800319,1758881528576,-480.0,0.0003863,30]
[387800320,1758881528611,-480.0,0.0003863,30]
[387800321,1758881528643,-480.0,0.0003863,30]
[387800322,1758881528679,-2932.64,0.0003863,30]
[387800323,1758881528708,-480.0,0.0003863,30]
[387800324,1758881528739,-480.0,0.0003863,30]
[387800325,1758881528773,-480.0,0.0003863,30]
[387800326,1758881528804,-480.0,0.0003863,30]
[387800327,1758881528836,-480.0,0.00038904,30]
[387800328,1758881528865,-622.08,0.00038904,30]
[387800329,1758881528896,-480.0,0.00038904,30]
[387800330,1758881528925,-480.0,0.00038904,30]
[387800331,1758881528955,-820.08,0.00038904,30]
[387800332,1758881528986,-2176.53,0.00038904,30]
[387800333,1758881529016,-695.64,0.00038904,30]
[387800334,1758881529045,-480.0,0.00038904,30]
[387800335,1758881529074,-480.0,0.00038904,30]
[387800336,1758881529103,-637.11,0.00038904,30]
[387800337,1758881529133,-1382.9,0.00038904,30]
[387800338,1758881529157,-480.0,0.00038904,30]
[387800339,1758881529183,-480.0,0.00038904,30]
[387800340,1758881529208,-480.0,0.00038904,30]
[387800341,1758881529233,-2932.64,0.00038904,30]
[387800342,1758881529258,-480.0,0.00038904,30]
[387800343,1758881529283,-480.0,0.00038904,30]
[387800344,1758881529310,-480.0,0.00038904,30]
[387800345,1758881529335,-480.0,0.00038904,30]
[387800346,1758881529495,-163.998,0.00038921,53]
[387800347,1758881529522,-260.75808091,0.00039178,30]
[387800348,1758881529548,-480.0,0.00039178,30]
[387800349,1758881529580,-622.08,0.00039178,30]
[387800350,1758881529605,-305.93639423,0.00039178,30]
[387800351,1758881529632,-820.08,0.00039178,30]
[387800352,1758881529659,-2176.53,0.00039178,30]
[387800353,1758881529685,-695.64,0.00039178,30]
[387800354,1758881529710,-480.0,0.00039178,30]
[387800355,1758881529736,-480.0,0.00039178,30]
[387800356,1758881529761,-637.11,0.00039178,30]
[387800357,1758881529788,-1382.9,0.00039178,30]
[387800358,1758881529813,-582.51120043,0.00039178,30]
[387800359,1758881529840,-480.0,0.00039178,30]
[387800360,1758881529866,-480.0,0.00039178,30]
[387800361,1758881529892,-2932.64,0.00039178,30]
[387800362,1758881529917,-510.87325518,0.00039178,30]
[387800363,1758881529943,-480.0,0.00039178,30]
[387800364,1758881529970,-480.0,0.00039178,30]
[387800365,1758881529996,-480.0,0.00039178,30]
[387800366,1758881530023,-235.46105485,0.00039194,32]
[387800367,1758881530049,-622.08,0.00039452,30]
[387800368,1758881530075,-480.0,0.00039452,30]
[387800369,1758881530101,-820.08,0.00039452,30]
[387800370,1758881530128,-2176.53,0.00039452,30]
[387800371,1758881530154,-695.64,0.00039452,30]
[387800372,1758881530179,-480.0,0.00039452,30]
[387800373,1758881530205,-480.0,0.00039452,30]
[387800374,1758881530232,-637.11,0.00039452,30]
[387800375,1758881530260,-1382.9,0.00039452,30]
[387800376,1758881530287,-480.0,0.00039452,30]
[387800377,1758881530314,-480.0,0.00039452,30]
[387800378,1758881530340,-2932.64,0.00039452,30]
[387800379,1758881530365,-480.0,0.00039452,30]
[387800380,1758881530391,-480.0,0.00039452,30]
[387800381,1758881530416,-480.0,0.00039452,30]
[387800382,1758881530442,-159.362376,0.0003951,60]
[387800383,1758881530469,-622.08,0.00039726,30]
[387800384,1758881530495,-480.0,0.00039726,30]
[387800385,1758881530519,-820.08,0.00039726,30]
[387800386,1758881530544,-2176.53,0.00039726,30]
[387800387,1758881530576,-695.64,0.00039726,30]
[387800388,1758881530601,-480.0,0.00039726,30]
[387800389,1758881530627,-480.0,0.00039726,30]
[387800390,1758881530653,-637.11,0.00039726,30]
[387800391,1758881530680,-1382.9,0.00039726,30]
[387800392,1758881530707,-480.0,0.00039726,30]
[387800393,1758881530732,-480.0,0.00039726,30]
[387800394,1758881530758,-2932.64,0.00039726,30]
[387800395,1758881530783,-480.0,0.00039726,30]
[387800396,1758881530808,-480.0,0.00039726,30]
[387800397,1758881530833,-480.0,0.00039726,30]
[387800398,1758881530858,-200.0,0.00039999,31]
[387800399,1758881530885,-200.0,0.00039999,31]
[387800400,1758881530913,-300.0,0.00039999,31]
[387800401,1758881530941,-400.0,0.00039999,31]
[387800402,1758881530969,-421.47637428,0.00039999,31]
[387800403,1758881530995,-622.08,0.0004,30]
[387800404,1758881531023,-480.0,0.0004,30]
[387800405,1758881531049,-820.08,0.0004,30]
[387800406,1758881531076,-2176.53,0.0004,30]
[387800407,1758881531101,-216.70576714,0.0004,120]
[387800408,1758881531129,-695.64,0.0004,30]
[387800409,1758881531154,-272.56559211,0.0004,30]
[387800410,1758881531180,-480.0,0.0004,30]
[387800411,1758881531209,-637.11,0.0004,30]
[387800412,1758881531237,-1382.9,0.0004,30]
[387800413,1758881531347,-480.0,0.0004,30]
[387800414,1758881531374,-480.0,0.0004,30]
[387800415,1758881531401,-2932.64,0.0004,30]
[387800416,1758881531427,-564.40357773,0.0004,30]
[387800417,1758881531456,-480.0,0.0004,30]
[387800418,1758881531481,-480.0,0.0004,30]
[387800419,1758881531506,-164.26497136,0.0004,30]
[387800420,1758881531531,-800.0,0.00040149,7]
[387800421,1758881531557,-235.46105485,0.00040265,35]
[387800422,1758881531583,-622.08,0.00040273,30]
[387800423,1758881531610,-475.68766446,0.00040273,30]
[387800424,1758881531637,-820.08,0.00040273,30]
[387800425,1758881531664,-2176.53,0.00040273,30]
[387800426,1758881531691,-695.64,0.00040273,30]
[387800427,1758881531718,-374.67886303,0.00040273,30]
[387800428,1758881531745,-637.11,0.00040273,30]
[387800429,1758881531773,-1382.9,0.00040273,30]
[387800430,1758881531801,-480.0,0.00040273,30]
[387800431,1758881531826,-480.0,0.00040273,30]
[387800432,1758881531856,-2932.64,0.00040273,30]
[387800433,1758881531901,-480.0,0.00040273,30]
[387800434,1758881531933,-480.0,0.00040273,30]
[387800435,1758881531961,-622.08,0.00040547,30]
[387800436,1758881531987,-820.08,0.00040547,30]
[387800437,1758881532015,-2176.53,0.00040547,30]
[387800438,1758881532043,-695.64,0.00040547,30]
[387800439,1758881532069,-637.11,0.00040547,30]
[387800440,1758881532099,-1382.9,0.00040547,30]
[387800441,1758881532136,-480.0,0.00040547,30]
[387800442,1758881532162,-480.0,0.00040547,30]
[387800443,1758881532188,-2932.64,0.00040547,30]
[387800444,1758881532214,-480.0,0.00040547,30]
[387800445,1758881532239,-480.0,0.00040547,30]
[387800446,1758881532265,-480.0,0.00040821,30]
[387800447,1758881532291,-480.0,0.00040821,30]
[387800448,1758881532316,-769.7,0.00040821,30]
[387800449,1758881532341,-894.64,0.00040821,30]
[387800450,1758881532366,-576.36,0.00040821,30]
[387800451,1758881532391,-480.0,0.00040821,30]
[387800452,1758881532416,-980.47,0.00040821,30]
[387800453,1758881532441,-509.86,0.00040821,30]
[387800454,1758881532469,-480.0,0.00040821,30]
[387800455,1758881532495,-480.0,0.00040821,30]
[387800456,1758881532522,-480.0,0.00040821,30]
[387800457,1758881532548,-480.0,0.00040821,30]
[387800458,1758881532578,-501.24,0.00040821,30]
[387800459,1758881532605,-480.0,0.00040821,30]
[387800460,1758881532631,-480.0,0.00040821,30]
[387800461,1758881532658,-480.0,0.00040821,30]
[387800462,1758881532683,-480.0,0.00040821,30]
[387800463,1758881532709,-480.0,0.00040821,30]
[387800464,1758881532736,-480.0,0.00040821,30]
[387800465,1758881532764,-480.0,0.00040821,30]
[387800466,1758881532790,-737.32,0.00040821,30]
[387800467,1758881532815,-480.0,0.00040821,30]
[387800468,1758881532840,-494.72850029,0.00040821,30]
[387800469,1758881532866,-738.47,0.00040821,21]
[387800470,1758881532892,-480.0,0.00040821,30]
[387800471,1758881532919,-1437.44,0.00040821,30]
[387800472,1758881532945,-901.43,0.00040821,30]
[387800473,1758881532980,-629.26,0.00040821,30]
[387800474,1758881533009,-480.0,0.00040821,30]
[387800475,1758881533038,-1293.99,0.00040821,30]
[387800476,1758881533065,-480.0,0.00040821,30]
[387800477,1758881533092,-480.0,0.00040821,30]
[387800478,1758881533119,-1545.06,0.00040821,30]
[387800479,1758881533146,-571.66,0.00040821,30]
[387800480,1758881533173,-759.11,0.00040821,30]
[387800481,1758881533204,-1618.94,0.00040821,30]
[387800482,1758881533229,-480.0,0.00040821,30]
[387800483,1758881533256,-1400.63,0.00040821,30]
[387800484,1758881533283,-6529.19,0.00040821,30]
[387800485,1758881533309,-1015.05,0.00040821,30]
[387800486,1758881533336,-480.0,0.00040821,30]
[387800487,1758881533362,-670.08,0.00040821,30]
[387800488,1758881533387,-480.0,0.00040821,30]
[387800489,1758881533412,-480.0,0.00040821,30]
[387800490,1758881533437,-480.0,0.00040821,30]
[387800491,1758881533467,-1232.57,0.00040821,30]
[387800492,1758881533495,-480.0,0.00040821,30]
[387800493,1758881533519,-622.08,0.00040821,30]
[387800494,1758881533545,-820.08,0.00040821,30]
[387800495,1758881533575,-2176.53,0.00040821,30]
[387800496,1758881533601,-695.64,0.00040821,30]
[387800497,1758881533629,-637.11,0.00040821,30]
[387800498,1758881533663,-1382.9,0.00040821,30]
[387800499,1758881533691,-480.0,0.00040821,30]
[387800500,1758881533720,-480.0,0.00040821,30]
[387800501,1758881533749,-2932.64,0.00040821,30]
[387800502,1758881533775,-480.0,0.00040821,30]
[387800503,1758881533800,-480.0,0.00040821,30]
[387800504,1758881533825,-2000.0,0.00041,28]
[387800505,1758881533851,-814.46239165,0.00041002,28]
[387800506,1758881533876,-960.000001,0.00041095,120]
[387800507,1758881533991,-262.14023498,0.00041095,120]
[387800508,1758881534021,-480.0,0.00041095,120]
[387800509,1758881534047,-496.2380972,0.00041095,120]
[387800510,1758881534078,-480.0,0.00041095,120]
[387800511,1758881534110,-647.07,0.00041095,120]
[387800512,1758881534140,-480.0,0.00041095,120]
[387800513,1758881534170,-701.94,0.00041095,120]
[387800514,1758881534197,-499.26,0.00041095,120]
[387800515,1758881534228,-480.0,0.00041095,120]
[387800516,1758881534253,-480.0,0.00041095,120]
[387800517,1758881534278,-947.96,0.00041095,120]
[387800518,1758881534305,-480.0,0.00041095,120]
[387800519,1758881534330,-480.0,0.00041095,120]
[387800520,1758881534355,-1092.18992007,0.00041095,120]
[387800521,1758881534379,-2156.02,0.00041095,120]
[387800522,1758881534403,-209.60849267,0.00041095,120]
[387800523,1758881534428,-510.39,0.00041095,30]
[387800524,1758881534456,-480.0,0.00041095,120]
[387800525,1758881534480,-480.0,0.00041095,120]
[387800526,1758881534505,-480.0,0.00041095,120]
[387800527,1758881534529,-480.0,0.00041095,120]
[387800528,1758881534555,-480.0,0.00041095,120]
[387800529,1758881534582,-480.0,0.00041095,120]
[387800530,1758881534607,-480.0,0.00041095,120]
[387800531,1758881534632,-769.7,0.00041095,120]
[387800532,1758881534659,-894.64,0.00041095,120]
[387800533,1758881534684,-576.36,0.00041095,120]
[387800534,1758881534715,-480.0,0.00041095,120]
[387800535,1758881534741,-980.47,0.00041095,120]
[387800536,1758881534766,-509.86,0.00041095,120]
[387800537,1758881534790,-480.0,0.00041095,120]
[387800538,1758881534815,-253.81836016,0.00041095,120]
[387800539,1758881534841,-480.0,0.00041095,120]
[387800540,1758881534867,-480.0,0.00041095,120]
[387800541,1758881534893,-501.24,0.00041095,120]
[387800542,1758881534921,-480.0,0.00041095,120]
[387800543,1758881534952,-480.0,0.00041095,120]
[387800544,1758881534977,-480.0,0.00041095,120]
[387800545,1758881535007,-480.0,0.00041095,120]
[387800546,1758881535033,-480.0,0.00041095,120]
[387800547,1758881535059,-480.0,0.00041095,120]
[387800548,1758881535085,-480.0,0.00041095,120]
[387800549,1758881535111,-737.32,0.00041095,120]
[387800550,1758881535136,-480.0,0.00041095,120]
[387800551,1758881535160,-738.47,0.00041095,21]
[387800552,1758881535185,-480.0,0.00041095,120]
[387800553,1758881535214,-1437.44,0.00041095,120]
[387800554,1758881535239,-901.43,0.00041095,120]
[387800555,1758881535265,-629.26,0.00041095,120]
[387800556,1758881535292,-480.0,0.00041095,120]
[387800557,1758881535319,-1293.99,0.00041095,120]
[387800558,1758881535344,-480.0,0.00041095,120]
[387800559,1758881535368,-512.67647743,0.00041095,120]
[387800560,1758881535393,-1545.06,0.00041095,120]
[387800561,1758881535418,-571.66,0.00041095,120]
[387800562,1758881535443,-759.11,0.00041095,120]
[387800563,1758881535471,-1618.94,0.00041095,120]
[387800564,1758881535495,-480.0,0.00041095,120]
[387800565,1758881535521,-1400.63,0.00041095,120]
[387800566,1758881535550,-6529.19,0.00041095,120]
[387800567,1758881535580,-1015.05,0.00041095,120]
[387800568,1758881535607,-480.0,0.00041095,120]
[387800569,1758881535635,-670.08,0.00041095,120]
[387800570,1758881535662,-480.0,0.00041095,120]
[387800571,1758881535687,-480.0,0.00041095,30]
[387800572,1758881535716,-480.0,0.00041095,120]
[387800573,1758881535741,-1232.57,0.00041095,120]
[387800574,1758881535771,-480.0,0.00041095,120]
[387800575,1758881535796,-622.08,0.00041095,120]
[387800576,1758881535823,-820.08,0.00041095,120]
[387800577,1758881535850,-2176.53,0.00041095,120]
[387800578,1758881535877,-695.64,0.00041095,120]
[387800579,1758881535902,-637.11,0.00041095,120]
[387800580,1758881535928,-1382.9,0.00041095,120]
[387800581,1758881535957,-480.0,0.00041095,120]
[387800582,1758881535983,-480.0,0.00041095,120]
[387800583,1758881536010,-2932.64,0.00041095,120]
[387800584,1758881536036,-500.0,0.00041095,120]
[387800585,1758881536063,-480.0,0.00041095,120]
[387800586,1758881536089,-480.0,0.00041095,120]
[387800587,1758881536115,-50000.0,0.00041096,120]
[387800588,1758881536141,-235.46105485,0.00041337,37]
[387800589,1758881536167,-2006.631144,0.00041342,10]
[387800590,1758881536192,-480.0,0.00041369,120]
[387800591,1758881536219,-480.0,0.00041369,120]
[387800592,1758881536245,-647.07,0.00041369,120]
[387800593,1758881536270,-480.0,0.00041369,120]
[387800594,1758881536296,-701.94,0.00041369,120]
[387800595,1758881536322,-499.26,0.00041369,120]
[387800596,1758881536349,-175.42703197,0.00041369,120]
[387800597,1758881536374,-480.0,0.00041369,120]
[387800598,1758881536403,-947.96,0.00041369,120]
[387800599,1758881536428,-480.0,0.00041369,120]
[387800600,1758881536453,-480.0,0.00041369,120]
[387800601,1758881536477,-2156.02,0.00041369,120]
[387800602,1758881536599,-510.39,0.00041369,30]
[387800603,1758881536630,-480.0,0.00041369,120]
[387800604,1758881536657,-480.0,0.00041369,120]
[387800605,1758881536682,-508.31745977,0.00041369,120]
[387800606,1758881536708,-480.0,0.00041369,120]
[387800607,1758881536734,-480.0,0.00041369,120]
[387800608,1758881536762,-480.0,0.00041369,120]
[387800609,1758881536791,-769.7,0.00041369,120]
[387800610,1758881536817,-894.64,0.00041369,120]
[387800611,1758881536843,-480.0,0.00041369,120]
[387800612,1758881536869,-576.36,0.00041369,120]
[387800613,1758881536896,-980.47,0.00041369,120]
[387800614,1758881536921,-509.86,0.00041369,120]
[387800615,1758881536948,-480.0,0.00041369,120]
[387800616,1758881536977,-480.0,0.00041369,120]
[387800617,1758881537003,-480.0,0.00041369,120]
[387800618,1758881537029,-501.24,0.00041369,120]
[387800619,1758881537055,-480.0,0.00041369,120]
[387800620,1758881537083,-480.0,0.00041369,120]
[387800621,1758881537110,-480.0,0.00041369,120]
[387800622,1758881537135,-480.0,0.00041369,120]
[387800623,1758881537162,-480.0,0.00041369,120]
[387800624,1758881537189,-480.0,0.00041369,120]
[387800625,1758881537215,-480.0,0.00041369,120]
[387800626,1758881537242,-737.32,0.00041369,120]
[387800627,1758881537267,-480.0,0.00041369,120]
[387800628,1758881537292,-738.47,0.00041369,21]
[387800629,1758881537319,-480.0,0.00041369,120]
[387800630,1758881537346,-1437.44,0.00041369,120]
[387800631,1758881537372,-901.43,0.00041369,120]
[387800632,1758881537397,-629.26,0.00041369,120]
[387800633,1758881537424,-480.0,0.00041369,120]
[387800634,1758881537452,-1293.99,0.00041369,120]
[387800635,1758881537480,-1545.06,0.00041369,120]
[387800636,1758881537506,-571.66,0.00041369,120]
[387800637,1758881537532,-759.11,0.00041369,120]
[387800638,1758881537575,-1618.94,0.00041369,120]
[387800639,1758881537605,-480.0,0.00041369,120]
[387800640,1758881537632,-1400.63,0.00041369,120]
[387800641,1758881537659,-6529.19,0.00041369,120]
[387800642,1758881537687,-1015.05,0.00041369,120]
[387800643,1758881537712,-480.0,0.00041369,120]
[387800644,1758881537739,-670.08,0.00041369,120]
[387800645,1758881537763,-480.0,0.00041369,120]
[387800646,1758881537789,-480.0,0.00041369,30]
[387800647,1758881537815,-480.0,0.00041369,120]
[387800648,1758881537843,-1232.57,0.00041369,120]
[387800649,1758881537870,-480.0,0.00041369,120]
[387800650,1758881537896,-622.08,0.00041369,120]
[387800651,1758881537922,-820.08,0.00041369,120]
[387800652,1758881537949,-2176.53,0.00041369,120]
[387800653,1758881537977,-695.64,0.00041369,120]
[387800654,1758881538002,-637.11,0.00041369,120]
[387800655,1758881538029,-1382.9,0.00041369,120]
[387800656,1758881538057,-480.0,0.00041369,120]
[387800657,1758881538085,-480.0,0.00041369,120]
[387800658,1758881538113,-2932.64,0.00041369,120]
[387800659,1758881538141,-500.0,0.00041369,120]
[387800660,1758881538168,-480.0,0.00041369,120]
[387800661,1758881538196,-480.0,0.00041369,120]
[387800662,1758881538225,-32681.9,0.000415,120]
[387800663,1758881538255,-605.31,0.00041547,120]
[387800664,1758881538284,-480.0,0.00041643,120]
[387800665,1758881538313,-480.0,0.00041643,120]
[387800666,1758881538340,-647.07,0.00041643,120]
[387800667,1758881538368,-480.0,0.00041643,120]
[387800668,1758881538396,-701.94,0.00041643,120]
[387800669,1758881538423,-499.26,0.00041643,120]
[387800670,1758881538450,-480.0,0.00041643,120]
[387800671,1758881538478,-947.96,0.00041643,120]
[387800672,1758881538505,-480.0,0.00041643,120]
[387800673,1758881538530,-480.0,0.00041643,120]
[387800674,1758881538557,-2156.02,0.00041643,120]
[387800675,1758881538587,-510.39,0.00041643,30]
[387800676,1758881538614,-480.0,0.00041643,120]
[387800677,1758881538639,-480.0,0.00041643,120]
[387800678,1758881538666,-480.0,0.00041643,120]
[387800679,1758881538693,-480.0,0.00041643,120]
[387800680,1758881538721,-480.0,0.00041643,120]
[387800681,1758881538748,-769.7,0.00041643,120]
[387800682,1758881538777,-894.64,0.00041643,120]
[387800683,1758881538804,-480.0,0.00041643,120]
[387800684,1758881538830,-576.36,0.00041643,120]
[387800685,1758881538858,-980.47,0.00041643,120]
[387800686,1758881538889,-509.86,0.00041643,120]
[387800687,1758881538918,-480.0,0.00041643,120]
[387800688,1758881538947,-480.0,0.00041643,120]
[387800689,1758881538978,-480.0,0.00041643,120]
[387800690,1758881539010,-501.24,0.00041643,120]
[387800691,1758881539038,-480.0,0.00041643,120]
[387800692,1758881539067,-480.0,0.00041643,120]
[387800693,1758881539095,-480.0,0.00041643,120]
[387800694,1758881539123,-480.0,0.00041643,120]
[387800695,1758881539153,-480.0,0.00041643,120]
[387800696,1758881539186,-480.0,0.00041643,120]
[387800697,1758881539321,-480.0,0.00041643,120]
[387800698,1758881539349,-737.32,0.00041643,120]
[387800699,1758881539376,-331.46738425,0.00041643,120]
[387800700,1758881539401,-738.47,0.00041643,21]
[387800701,1758881539427,-480.0,0.00041643,120]
[387800702,1758881539456,-1437.44,0.00041643,120]
[387800703,1758881539483,-901.43,0.00041643,120]
[387800704,1758881539509,-629.26,0.00041643,120]
[387800705,1758881539534,-480.0,0.00041643,120]
[387800706,1758881539563,-1293.99,0.00041643,120]
[387800707,1758881539589,-1545.06,0.00041643,120]
[387800708,1758881539617,-571.66,0.00041643,120]
[387800709,1758881539644,-759.11,0.00041643,120]
[387800710,1758881539673,-1618.94,0.00041643,120]
[387800711,1758881539699,-1400.63,0.00041643,120]
[387800712,1758881539729,-6529.19,0.00041643,120]
[387800713,1758881539756,-1015.05,0.00041643,120]
[387800714,1758881539784,-480.0,0.00041643,120]
[387800715,1758881539809,-670.08,0.00041643,120]
[387800716,1758881539835,-505.6604333,0.00041643,120]
[387800717,1758881539860,-480.0,0.00041643,30]
[387800718,1758881539886,-480.0,0.00041643,120]
[387800719,1758881539912,-1232.57,0.00041643,120]
[387800720,1758881539939,-480.0,0.00041643,120]
[387800721,1758881539968,-622.08,0.00041643,120]
[387800722,1758881539995,-820.08,0.00041643,120]
[387800723,1758881540023,-2176.53,0.00041643,120]
[387800724,1758881540049,-695.64,0.00041643,120]
[387800725,1758881540075,-637.11,0.00041643,120]
[387800726,1758881540101,-1382.9,0.00041643,120]
[387800727,1758881540127,-480.0,0.00041643,120]
[387800728,1758881540153,-480.0,0.00041643,120]
[387800729,1758881540179,-2932.64,0.00041643,120]
[387800730,1758881540206,-500.0,0.00041643,120]
[387800731,1758881540233,-480.0,0.00041643,120]
[387800732,1758881540258,-480.0,0.00041643,120]
[387800733,1758881540283,-500.0,0.00041917,30]
[387800734,1758881540308,-463.29237557,0.00041917,30]
[387800735,1758881540332,-536.70762443,0.00041917,30]
[387800736,1758881540357,-480.0,0.00041917,120]
[387800737,1758881540383,-312.01184446,0.00041917,120]
[387800738,1758881540409,-647.07,0.00041917,120]
[387800739,1758881540433,-480.0,0.00041917,120]
[387800740,1758881540458,-701.94,0.00041917,120]
[387800741,1758881540484,-499.26,0.00041917,120]
[387800742,1758881540510,-480.0,0.00041917,120]
[387800743,1758881540537,-947.96,0.00041917,120]
[387800744,1758881540562,-480.0,0.00041917,120]
[387800745,1758881540591,-480.0,0.00041917,120]
[387800746,1758881540615,-2156.02,0.00041917,120]
[387800747,1758881540645,-510.39,0.00041917,30]
[387800748,1758881540675,-480.0,0.00041917,120]
[387800749,1758881540705,-480.0,0.00041917,120]
[387800750,1758881540733,-480.0,0.00041917,120]
[387800751,1758881540762,-480.0,0.00041917,120]
[387800752,1758881540791,-480.0,0.00041917,120]
[387800753,1758881540820,-769.7,0.00041917,120]
[387800754,1758881540850,-894.64,0.00041917,120]
[387800755,1758881540879,-480.0,0.00041917,120]
[387800756,1758881540909,-576.36,0.00041917,120]
[387800757,1758881540938,-980.47,0.00041917,120]
[387800758,1758881540968,-509.86,0.00041917,120]
[387800759,1758881540996,-480.0,0.00041917,120]
[387800760,1758881541025,-480.0,0.00041917,120]
[387800761,1758881541052,-189.18424862,0.00041917,120]